[Event "Late-Titled-Tuesday-Blitz-February-13-2024"]
[Site "Chess.com"]
[Date "2024.02.13"]
[Round "5"]
[White "kids2010"]
[Black "KetiTsatsalashvili"]
[Result "1-0"]
[WhiteElo "2765"]
[BlackElo "2463"]
[TimeControl "180+1"]
[EndTime "14:54:38 PST"]
[Termination "kids2010 won by resignation"]

1. e4 {[%clk 0:03:00.9]} 1... c5 {[%clk 0:02:52.9]} 2. c3 {[%clk 0:03:00.4]}
2... Nf6 {[%clk 0:02:51.9]} 3. e5 {[%clk 0:03:00.5]} 3... Nd5 {[%clk 0:02:51.5]}
4. Nf3 {[%clk 0:03:01.4]} 4... e6 {[%clk 0:02:51.1]} 5. d4 {[%clk 0:03:01.3]}
5... cxd4 {[%clk 0:02:50.7]} 6. cxd4 {[%clk 0:03:02.2]} 6... Nc6 {[%clk
0:02:50.4]} 7. Bc4 {[%clk 0:03:01.8]} 7... d6 {[%clk 0:02:44.1]} 8. O-O {[%clk
0:02:59.4]} 8... dxe5 {[%clk 0:02:38.4]} 9. dxe5 {[%clk 0:03:00.3]} 9... Nb6
{[%clk 0:02:31.2]} 10. Bd3 {[%clk 0:03:00.4]} 10... Nb4 {[%clk 0:02:24.9]} 11.
Bb5+ {[%clk 0:02:46.1]} 11... Bd7 {[%clk 0:02:24.5]} 12. Bxd7+ {[%clk 0:02:38]}
12... Qxd7 {[%clk 0:02:25.4]} 13. Nc3 {[%clk 0:02:38.6]} 13... Qxd1 {[%clk
0:02:19.9]} 14. Rxd1 {[%clk 0:02:39.5]} 14... Be7 {[%clk 0:02:13.6]} 15. a3
{[%clk 0:02:26.7]} 15... N4d5 {[%clk 0:02:07.5]} 16. Ne4 {[%clk 0:02:25.3]}
16... O-O {[%clk 0:02:03.6]} 17. Bg5 {[%clk 0:02:15.7]} 17... Bxg5 {[%clk
0:02:01.2]} 18. Nfxg5 {[%clk 0:02:16.6]} 18... Nc4 {[%clk 0:01:55.5]} 19. Nf3
{[%clk 0:02:16.4]} 19... f6 {[%clk 0:01:30.2]} 20. exf6 {[%clk 0:02:15]} 20...
gxf6 {[%clk 0:01:31.1]} 21. b3 {[%clk 0:02:14.1]} 21... Ncb6 {[%clk 0:01:29.4]}
22. Nc5 {[%clk 0:02:08.7]} 22... e5 {[%clk 0:00:57.2]} 23. Nxb7 {[%clk
0:02:04.9]} 23... Nc3 {[%clk 0:00:55.7]} 24. Re1 {[%clk 0:02:04.5]} 24... Nbd5
{[%clk 0:00:53.2]} 25. Nd6 {[%clk 0:02:00.6]} 25... Rab8 {[%clk 0:00:44]} 26. b4
{[%clk 0:02:00.1]} 26... a5 {[%clk 0:00:39.7]} 27. bxa5 {[%clk 0:01:57.5]} 27...
Ra8 {[%clk 0:00:39.8]} 28. Nc4 {[%clk 0:01:51.9]} 28... Ra6 {[%clk 0:00:26.6]}
29. Nfd2 {[%clk 0:01:47.9]} 29... Rc8 {[%clk 0:00:23.7]} 30. g3 {[%clk
0:01:38.6]} 30... Rac6 {[%clk 0:00:23.3]} 31. Ne3 {[%clk 0:01:34.9]} 31... Rc5
{[%clk 0:00:18.4]} 32. Kg2 {[%clk 0:01:26.5]} 32... Rxa5 {[%clk 0:00:17.4]} 33.
Rac1 {[%clk 0:01:22.2]} 33... Rxa3 {[%clk 0:00:16.1]} 34. Nxd5 {[%clk
0:01:20.9]} 34... Rd8 {[%clk 0:00:14.8]} 35. Rxc3 {[%clk 0:01:20.2]} 35... Rxc3
{[%clk 0:00:12.4]} 36. Nxc3 {[%clk 0:01:20.9]} 36... Rxd2 {[%clk 0:00:12.7]} 37.
Ne4 {[%clk 0:01:21.5]} 37... Ra2 {[%clk 0:00:11.6]} 38. Nxf6+ {[%clk 0:01:21.8]}
38... Kf7 {[%clk 0:00:12.1]} 39. Nd7 {[%clk 0:01:22.2]} 1-0

[Event "Late-Titled-Tuesday-Blitz-February-13-2024"]
[Site "Chess.com"]
[Date "2024.02.13"]
[Round "5"]
[White "HaryKane"]
[Black "Savagelittlemole"]
[Result "1-0"]
[WhiteElo "2602"]
[BlackElo "2456"]
[TimeControl "180+1"]
[EndTime "14:54:39 PST"]
[Termination "HaryKane won by resignation"]

1. e4 {[%clk 0:03:00.9]} 1... c5 {[%clk 0:02:58.1]} 2. Nf3 {[%clk 0:02:59.8]}
2... d6 {[%clk 0:02:56.6]} 3. d4 {[%clk 0:02:59.9]} 3... cxd4 {[%clk 0:02:57.5]}
4. Nxd4 {[%clk 0:03:00.5]} 4... Nf6 {[%clk 0:02:57.1]} 5. Nc3 {[%clk 0:03:01.1]}
5... a6 {[%clk 0:02:57.2]} 6. Bc4 {[%clk 0:03:01.3]} 6... e6 {[%clk 0:02:56]} 7.
Bb3 {[%clk 0:03:01.6]} 7... b5 {[%clk 0:02:55.5]} 8. f3 {[%clk 0:03:01]} 8...
Be7 {[%clk 0:02:55.9]} 9. Be3 {[%clk 0:03:00.3]} 9... O-O {[%clk 0:02:55]} 10.
Qd2 {[%clk 0:02:59.5]} 10... Qc7 {[%clk 0:02:54.9]} 11. g4 {[%clk 0:02:59.5]}
11... Nc6 {[%clk 0:02:52.9]} 12. g5 {[%clk 0:02:59.1]} 12... Ne8 {[%clk
0:02:45.7]} 13. Nd5 {[%clk 0:02:53.6]} 13... Nxd4 {[%clk 0:02:26.5]} 14. Nxe7+
{[%clk 0:02:51.6]} 14... Qxe7 {[%clk 0:02:25.6]} 15. Qxd4 {[%clk 0:02:47.4]}
15... d5 {[%clk 0:01:55.2]} 16. exd5 {[%clk 0:02:36.7]} 16... exd5 {[%clk
0:01:56.1]} 17. O-O-O {[%clk 0:02:36.4]} 17... Be6 {[%clk 0:01:41.9]} 18. h4
{[%clk 0:02:30]} 18... a5 {[%clk 0:01:41.2]} 19. a3 {[%clk 0:02:29.8]} 19... b4
{[%clk 0:01:36.5]} 20. a4 {[%clk 0:02:29.4]} 20... Nd6 {[%clk 0:01:32.9]} 21.
Bf4 {[%clk 0:02:22.7]} 21... Nc4 {[%clk 0:01:31]} 22. Bxc4 {[%clk 0:02:19.8]}
22... dxc4 {[%clk 0:01:27.5]} 23. Bd6 {[%clk 0:02:18.5]} 23... Qd7 {[%clk
0:01:20.6]} 24. Bxf8 {[%clk 0:02:14.4]} 24... Qxd4 {[%clk 0:01:17.7]} 25. Rxd4
{[%clk 0:02:14.4]} 25... Kxf8 {[%clk 0:01:18.2]} 26. Re1 {[%clk 0:02:07.9]}
26... g6 {[%clk 0:01:15.4]} 27. Re5 {[%clk 0:02:04]} 27... Ke7 {[%clk
0:01:11.8]} 28. Rxc4 {[%clk 0:01:58.9]} 28... f6 {[%clk 0:01:08.4]} 29. gxf6+
{[%clk 0:01:38]} 29... Kxf6 {[%clk 0:01:07.4]} 30. Rcc5 {[%clk 0:01:38.6]} 30...
b3 {[%clk 0:01:03.3]} 31. Rxa5 {[%clk 0:01:33.9]} 31... Rd8 {[%clk 0:00:58.6]}
32. Re3 {[%clk 0:01:27.9]} 32... Bf5 {[%clk 0:00:47.8]} 33. Rxb3 {[%clk
0:01:23.8]} 33... Re8 {[%clk 0:00:46.1]} 34. Rb6+ {[%clk 0:01:16.2]} 34... Kg7
{[%clk 0:00:42.4]} 35. Rxf5 {[%clk 0:01:11.6]} 35... gxf5 {[%clk 0:00:40.5]} 36.
a5 {[%clk 0:01:12.2]} 36... Re3 {[%clk 0:00:34.4]} 37. Rb3 {[%clk 0:01:06.9]}
37... Re5 {[%clk 0:00:30.1]} 38. a6 {[%clk 0:01:04.8]} 38... Ra5 {[%clk
0:00:27.3]} 39. Ra3 {[%clk 0:01:04.8]} 1-0

[Event "Late-Titled-Tuesday-Blitz-February-13-2024"]
[Site "Chess.com"]
[Date "2024.02.13"]
[Round "5"]
[White "Malev212"]
[Black "AlexeiShirov"]
[Result "0-1"]
[WhiteElo "2674"]
[BlackElo "2870"]
[TimeControl "180+1"]
[EndTime "14:54:52 PST"]
[Termination "AlexeiShirov won by resignation"]

1. e4 {[%clk 0:03:00.9]} 1... e5 {[%clk 0:02:59.6]} 2. Nf3 {[%clk 0:02:59.2]}
2... Nc6 {[%clk 0:02:59.5]} 3. Bb5 {[%clk 0:02:58.7]} 3... a6 {[%clk 0:02:59.1]}
4. Ba4 {[%clk 0:02:58]} 4... Nf6 {[%clk 0:02:58.9]} 5. O-O {[%clk 0:02:57.9]}
5... b5 {[%clk 0:02:58.7]} 6. Bb3 {[%clk 0:02:57.2]} 6... Bc5 {[%clk 0:02:58.4]}
7. Nc3 {[%clk 0:02:54.5]} 7... d6 {[%clk 0:02:54.2]} 8. a4 {[%clk 0:02:49]} 8...
Rb8 {[%clk 0:02:52.7]} 9. axb5 {[%clk 0:02:46]} 9... axb5 {[%clk 0:02:51.6]} 10.
Nd5 {[%clk 0:02:42.4]} 10... Nxd5 {[%clk 0:02:47.7]} 11. Bxd5 {[%clk 0:02:40.2]}
11... Ne7 {[%clk 0:02:45.5]} 12. Bb3 {[%clk 0:02:33.3]} 12... O-O {[%clk
0:02:42.4]} 13. c3 {[%clk 0:02:14.1]} 13... Ng6 {[%clk 0:02:40.3]} 14. d4 {[%clk
0:02:11.7]} 14... Bb6 {[%clk 0:02:39.9]} 15. h3 {[%clk 0:01:52.4]} 15... h6
{[%clk 0:02:30.1]} 16. Re1 {[%clk 0:01:46.8]} 16... Qf6 {[%clk 0:02:28.5]} 17.
Be3 {[%clk 0:01:36.5]} 17... Nf4 {[%clk 0:02:27.5]} 18. Kh2 {[%clk 0:01:24.4]}
18... c5 {[%clk 0:02:23.3]} 19. dxe5 {[%clk 0:01:07.7]} 19... dxe5 {[%clk
0:02:22.7]} 20. Bxf4 {[%clk 0:01:02.4]} 20... Qxf4+ {[%clk 0:02:21.3]} 21. g3
{[%clk 0:01:01.4]} 21... Qf6 {[%clk 0:02:20.4]} 22. Bd5 {[%clk 0:00:56.3]} 22...
c4 {[%clk 0:02:13.6]} 23. Kg2 {[%clk 0:00:51.3]} 23... Be6 {[%clk 0:02:03]} 24.
Qe2 {[%clk 0:00:45.3]} 24... Rfe8 {[%clk 0:01:47.2]} 25. Red1 {[%clk 0:00:43.5]}
25... Bc8 {[%clk 0:01:39.2]} 26. Nh2 {[%clk 0:00:35]} 26... Qg6 {[%clk
0:01:33.7]} 27. Ng4 {[%clk 0:00:30.5]} 27... h5 {[%clk 0:01:30]} 28. Ne3 {[%clk
0:00:28.1]} 28... h4 {[%clk 0:01:30]} 29. Qf3 {[%clk 0:00:21.2]} 29... hxg3
{[%clk 0:01:20]} 30. fxg3 {[%clk 0:00:21.1]} 30... Bxe3 {[%clk 0:01:15.8]} 31.
Qxe3 {[%clk 0:00:22]} 31... b4 {[%clk 0:01:15.9]} 32. Rd2 {[%clk 0:00:20.7]}
32... Be6 {[%clk 0:01:13.2]} 33. Ra6 {[%clk 0:00:19.3]} 33... Red8 {[%clk
0:01:08.1]} 34. Rf2 {[%clk 0:00:18.2]} 34... Rxd5 {[%clk 0:01:05.9]} 35. Rxe6
{[%clk 0:00:12.4]} 35... Qxe6 {[%clk 0:01:05.3]} 36. exd5 {[%clk 0:00:12.4]}
36... Qxd5+ {[%clk 0:01:05.1]} 0-1

[Event "Late-Titled-Tuesday-Blitz-February-13-2024"]
[Site "Chess.com"]
[Date "2024.02.13"]
[Round "5"]
[White "Szparu"]
[Black "SHIVACalypso"]
[Result "0-1"]
[WhiteElo "2775"]
[BlackElo "2507"]
[TimeControl "180+1"]
[EndTime "14:54:54 PST"]
[Termination "SHIVACalypso won by checkmate"]

1. e4 {[%clk 0:03:00.9]} 1... e6 {[%clk 0:03:00.2]} 2. d4 {[%clk 0:03:00.8]}
2... d5 {[%clk 0:03:00.5]} 3. Nc3 {[%clk 0:02:59.2]} 3... Nf6 {[%clk 0:02:59.6]}
4. Bg5 {[%clk 0:02:58.6]} 4... Be7 {[%clk 0:02:57.1]} 5. e5 {[%clk 0:02:58]}
5... Nfd7 {[%clk 0:02:56.3]} 6. h4 {[%clk 0:02:58.7]} 6... a6 {[%clk 0:02:48]}
7. Qg4 {[%clk 0:02:55.6]} 7... Kf8 {[%clk 0:02:43.1]} 8. O-O-O {[%clk
0:02:51.1]} 8... c5 {[%clk 0:02:32.5]} 9. dxc5 {[%clk 0:02:18.2]} 9... Nxe5
{[%clk 0:02:24.2]} 10. Qg3 {[%clk 0:02:18.4]} 10... Nbc6 {[%clk 0:02:19.6]} 11.
f4 {[%clk 0:02:08.6]} 11... Nd7 {[%clk 0:02:19.5]} 12. h5 {[%clk 0:01:59.7]}
12... h6 {[%clk 0:02:16.6]} 13. Bxe7+ {[%clk 0:01:59.1]} 13... Qxe7 {[%clk
0:02:17.5]} 14. Nf3 {[%clk 0:01:42.9]} 14... Nxc5 {[%clk 0:02:14.4]} 15. Qe1
{[%clk 0:01:33.4]} 15... Bd7 {[%clk 0:02:05]} 16. Ne2 {[%clk 0:01:30.1]} 16...
Rc8 {[%clk 0:02:01.8]} 17. Ned4 {[%clk 0:01:29]} 17... Nxd4 {[%clk 0:01:58.2]}
18. Rxd4 {[%clk 0:01:28.8]} 18... Qf6 {[%clk 0:01:47.2]} 19. Ne5 {[%clk
0:01:25.5]} 19... Bc6 {[%clk 0:01:29.4]} 20. g3 {[%clk 0:01:03.8]} 20... Kg8
{[%clk 0:01:20.8]} 21. Kb1 {[%clk 0:01:00.9]} 21... Kh7 {[%clk 0:01:20.8]} 22.
Qb4 {[%clk 0:00:51.6]} 22... Ne4 {[%clk 0:01:18.4]} 23. Bd3 {[%clk 0:00:50.4]}
23... Rhd8 {[%clk 0:01:18.4]} 24. a4 {[%clk 0:00:43.7]} 24... Kg8 {[%clk
0:01:11.4]} 25. Nxc6 {[%clk 0:00:29.6]} 25... bxc6 {[%clk 0:01:10.8]} 26. Rxe4
{[%clk 0:00:20.6]} 26... dxe4 {[%clk 0:01:10]} 27. Qxe4 {[%clk 0:00:20.9]} 27...
Rb8 {[%clk 0:01:03.9]} 28. b3 {[%clk 0:00:19]} 28... Qc3 {[%clk 0:01:01.3]} 29.
Ka2 {[%clk 0:00:16]} 29... Rxb3 {[%clk 0:00:54]} 30. cxb3 {[%clk 0:00:14.2]}
30... Rxd3 {[%clk 0:00:53.9]} 31. Rh2 {[%clk 0:00:14.2]} 31... Qxb3+ {[%clk
0:00:52.8]} 32. Ka1 {[%clk 0:00:13.6]} 32... Rd1+ {[%clk 0:00:50.5]} 33. Qb1
{[%clk 0:00:12.9]} 33... Rxb1# {[%clk 0:00:49.6]} 0-1

[Event "Late-Titled-Tuesday-Blitz-February-13-2024"]
[Site "Chess.com"]
[Date "2024.02.13"]
[Round "5"]
[White "Dedic8"]
[Black "MessiKingdom"]
[Result "1-0"]
[WhiteElo "2861"]
[BlackElo "2631"]
[TimeControl "180+1"]
[EndTime "14:54:56 PST"]
[Termination "Dedic8 won by checkmate"]

1. d4 {[%clk 0:03:00.9]} 1... Nf6 {[%clk 0:03:00.1]} 2. c4 {[%clk 0:03:01.5]}
2... g6 {[%clk 0:03:00.8]} 3. Nc3 {[%clk 0:03:01.8]} 3... Bg7 {[%clk 0:03:01.5]}
4. e4 {[%clk 0:03:01.6]} 4... O-O {[%clk 0:03:02.2]} 5. Be3 {[%clk 0:03:01.1]}
5... d6 {[%clk 0:03:01.9]} 6. h3 {[%clk 0:03:01.6]} 6... e5 {[%clk 0:02:51.6]}
7. d5 {[%clk 0:03:01.3]} 7... Na6 {[%clk 0:02:39.8]} 8. Nf3 {[%clk 0:03:00.6]}
8... Nd7 {[%clk 0:02:33.8]} 9. g4 {[%clk 0:02:57.9]} 9... Ndc5 {[%clk
0:02:32.7]} 10. Be2 {[%clk 0:02:36.2]} 10... f5 {[%clk 0:02:32.4]} 11. gxf5
{[%clk 0:02:36.3]} 11... gxf5 {[%clk 0:02:33.3]} 12. exf5 {[%clk 0:02:35.6]}
12... Bxf5 {[%clk 0:02:33.5]} 13. a3 {[%clk 0:02:35.1]} 13... Nd3+ {[%clk
0:02:09.9]} 14. Bxd3 {[%clk 0:02:32.7]} 14... Bxd3 {[%clk 0:02:10.8]} 15. Qxd3
{[%clk 0:02:29.4]} 15... Rxf3 {[%clk 0:02:10.5]} 16. Ne4 {[%clk 0:02:13.6]}
16... Qh4 {[%clk 0:01:38.6]} 17. O-O-O {[%clk 0:02:12.6]} 17... Raf8 {[%clk
0:01:39]} 18. Rhg1 {[%clk 0:02:07.1]} 18... R8f5 {[%clk 0:00:51.9]} 19. Rg4
{[%clk 0:02:03.3]} 19... Qxh3 {[%clk 0:00:49.5]} 20. Rdg1 {[%clk 0:02:03.3]}
20... Rf7 {[%clk 0:00:21.7]} 21. Ng5 {[%clk 0:02:03.2]} 21... Nc5 {[%clk
0:00:22.2]} 22. Qc2 {[%clk 0:01:51.8]} 22... Rxe3 {[%clk 0:00:10.4]} 23. Nxh3
{[%clk 0:01:28.2]} 23... Rxh3 {[%clk 0:00:11.3]} 24. Kb1 {[%clk 0:01:28.4]}
24... Rhf3 {[%clk 0:00:09]} 25. Qd2 {[%clk 0:01:09.9]} 25... Kh8 {[%clk
0:00:06.6]} 26. Qg5 {[%clk 0:01:09.1]} 26... h6 {[%clk 0:00:04.4]} 27. Qd8+
{[%clk 0:00:58.2]} 27... Kh7 {[%clk 0:00:04]} 28. Rg6 {[%clk 0:00:53.7]} 28...
Rxf2 {[%clk 0:00:03.3]} 29. Rxh6+ {[%clk 0:00:54.2]} 29... Kxh6 {[%clk
0:00:02.6]} 30. Qh4# {[%clk 0:00:54.8]} 1-0

[Event "Late-Titled-Tuesday-Blitz-February-13-2024"]
[Site "Chess.com"]
[Date "2024.02.13"]
[Round "5"]
[White "jefferyx"]
[Black "Zhigalko_Sergei"]
[Result "1-0"]
[WhiteElo "3044"]
[BlackElo "2927"]
[TimeControl "180+1"]
[EndTime "14:54:57 PST"]
[Termination "jefferyx won on time"]

1. d4 {[%clk 0:03:00.9]} 1... Nf6 {[%clk 0:03:00.3]} 2. c4 {[%clk 0:03:01.2]}
2... e6 {[%clk 0:03:00.9]} 3. Nc3 {[%clk 0:03:01.9]} 3... Bb4 {[%clk 0:03:00.7]}
4. Nf3 {[%clk 0:03:02.6]} 4... b6 {[%clk 0:03:00.8]} 5. e3 {[%clk 0:03:02.8]}
5... Bb7 {[%clk 0:02:58.3]} 6. Bd3 {[%clk 0:03:02.8]} 6... O-O {[%clk
0:02:56.4]} 7. O-O {[%clk 0:03:03]} 7... d5 {[%clk 0:02:56.9]} 8. cxd5 {[%clk
0:03:03.2]} 8... exd5 {[%clk 0:02:57.8]} 9. Ne5 {[%clk 0:03:03.6]} 9... c5
{[%clk 0:02:24.3]} 10. Bd2 {[%clk 0:03:02.1]} 10... Nc6 {[%clk 0:02:18.5]} 11.
a3 {[%clk 0:02:57.1]} 11... Nxe5 {[%clk 0:02:12.1]} 12. dxe5 {[%clk 0:02:53.2]}
12... Bxc3 {[%clk 0:02:12.7]} 13. Bxc3 {[%clk 0:02:52.2]} 13... Ne4 {[%clk
0:02:11.6]} 14. Be1 {[%clk 0:02:49.8]} 14... Qe7 {[%clk 0:01:50.9]} 15. f3
{[%clk 0:02:46.4]} 15... Ng5 {[%clk 0:01:51.1]} 16. f4 {[%clk 0:02:28.3]} 16...
Ne4 {[%clk 0:01:50.6]} 17. Bxe4 {[%clk 0:02:28.1]} 17... dxe4 {[%clk 0:01:50.5]}
18. Bc3 {[%clk 0:02:07.3]} 18... Qh4 {[%clk 0:01:11.6]} 19. f5 {[%clk
0:02:04.4]} 19... Rad8 {[%clk 0:01:10.9]} 20. Qe2 {[%clk 0:02:03.9]} 20... Rd3
{[%clk 0:01:08.7]} 21. Rf4 {[%clk 0:01:58.5]} 21... Qg5 {[%clk 0:01:07.3]} 22.
Raf1 {[%clk 0:01:55.8]} 22... Rfd8 {[%clk 0:01:05.6]} 23. e6 {[%clk 0:01:47.1]}
23... f6 {[%clk 0:00:58.5]} 24. Rg4 {[%clk 0:01:42]} 24... Qh6 {[%clk
0:00:58.1]} 25. Rg3 {[%clk 0:01:42]} 25... Ba6 {[%clk 0:00:48]} 26. Be1 {[%clk
0:01:17.6]} 26... Rxa3 {[%clk 0:00:24]} 27. Qc2 {[%clk 0:00:53]} 27... Rad3
{[%clk 0:00:02.3]} 28. Qa4 {[%clk 0:00:48.3]} 1-0

[Event "Late-Titled-Tuesday-Blitz-February-13-2024"]
[Site "Chess.com"]
[Date "2024.02.13"]
[Round "5"]
[White "Kaua18"]
[Black "Sleepless_Knightmare"]
[Result "0-1"]
[WhiteElo "2525"]
[BlackElo "2310"]
[TimeControl "180+1"]
[EndTime "14:55:00 PST"]
[Termination "Sleepless_Knightmare won by resignation"]

1. e4 {[%clk 0:02:57.8]} 1... c5 {[%clk 0:02:58.9]} 2. Nf3 {[%clk 0:02:57.9]}
2... e6 {[%clk 0:02:59.5]} 3. g3 {[%clk 0:02:57.3]} 3... a6 {[%clk 0:02:58.1]}
4. Bg2 {[%clk 0:02:57.2]} 4... b5 {[%clk 0:02:58.7]} 5. O-O {[%clk 0:02:57.8]}
5... Bb7 {[%clk 0:02:59.3]} 6. Re1 {[%clk 0:02:56.5]} 6... h5 {[%clk 0:02:59.7]}
7. a4 {[%clk 0:02:54.6]} 7... b4 {[%clk 0:02:57.8]} 8. d4 {[%clk 0:02:50.3]}
8... h4 {[%clk 0:02:57.9]} 9. Nxh4 {[%clk 0:02:49.1]} 9... cxd4 {[%clk
0:02:57.2]} 10. Qxd4 {[%clk 0:02:47.1]} 10... Nc6 {[%clk 0:02:55.4]} 11. Qd3
{[%clk 0:02:35.9]} 11... Rxh4 {[%clk 0:02:54.3]} 12. gxh4 {[%clk 0:02:35.5]}
12... Qxh4 {[%clk 0:02:54.4]} 13. Qg3 {[%clk 0:02:35.9]} 13... Qh7 {[%clk
0:02:53.7]} 14. Be3 {[%clk 0:02:30.8]} 14... O-O-O {[%clk 0:02:51]} 15. Nd2
{[%clk 0:02:22]} 15... d6 {[%clk 0:02:47.8]} 16. Nc4 {[%clk 0:02:21.2]} 16... e5
{[%clk 0:02:46.7]} 17. Rad1 {[%clk 0:02:17.7]} 17... Nf6 {[%clk 0:02:45.6]} 18.
Bb6 {[%clk 0:02:01.5]} 18... Rd7 {[%clk 0:02:37.2]} 19. Bh3 {[%clk 0:02:01]}
19... Nxe4 {[%clk 0:02:34.7]} 20. Bxd7+ {[%clk 0:01:35.7]} 20... Kxd7 {[%clk
0:02:35.6]} 21. Qd3 {[%clk 0:00:35.2]} 21... Qg6+ {[%clk 0:02:31.5]} 22. Kf1
{[%clk 0:00:35.4]} 22... Nd4 {[%clk 0:02:23.8]} 23. Qh3+ {[%clk 0:00:27.4]}
23... f5 {[%clk 0:02:22.6]} 24. Bxd4 {[%clk 0:00:26.4]} 24... exd4 {[%clk
0:02:22.1]} 25. Rxd4 {[%clk 0:00:26.5]} 25... Kc7 {[%clk 0:02:17.3]} 26. Red1
{[%clk 0:00:17.4]} 26... Be7 {[%clk 0:02:13.8]} 27. Ne3 {[%clk 0:00:14.9]} 27...
a5 {[%clk 0:02:04.4]} 28. Nxf5 {[%clk 0:00:13.1]} 28... Ba6+ {[%clk 0:02:03.7]}
29. R1d3 {[%clk 0:00:11]} 29... Qe6 {[%clk 0:01:52.4]} 30. Qf3 {[%clk 0:00:04]}
30... Nd2+ {[%clk 0:01:51]} 31. Kg2 {[%clk 0:00:04.3]} 31... Nxf3 {[%clk
0:01:51.2]} 32. Rxf3 {[%clk 0:00:05.2]} 32... Bb7 {[%clk 0:01:46.4]} 33. Rf4
{[%clk 0:00:03.4]} 33... Bg5 {[%clk 0:01:43.8]} 34. Kg3 {[%clk 0:00:03]} 34...
Bxf3 {[%clk 0:01:39.9]} 35. Rxf3 {[%clk 0:00:02.9]} 35... Qe5+ {[%clk
0:01:39.1]} 36. Kg4 {[%clk 0:00:02.6]} 36... Bf6 {[%clk 0:01:39]} 37. c3 {[%clk
0:00:02.6]} 37... b3 {[%clk 0:01:38.5]} 38. h4 {[%clk 0:00:02.5]} 38... Qe4+
{[%clk 0:01:37.8]} 39. Rf4 {[%clk 0:00:02.9]} 39... Qc2 {[%clk 0:01:37.6]} 40.
Rc4+ {[%clk 0:00:03.3]} 40... Kd7 {[%clk 0:01:36.7]} 41. Kf3 {[%clk 0:00:02.1]}
41... Qd3+ {[%clk 0:01:36]} 42. Ne3 {[%clk 0:00:01.7]} 42... Qc2 {[%clk
0:01:31.2]} 43. Rg4 {[%clk 0:00:01.5]} 43... Qxb2 {[%clk 0:01:31]} 44. Nc4
{[%clk 0:00:01.4]} 44... Qxc3+ {[%clk 0:01:30.8]} 45. Ke2 {[%clk 0:00:01.8]}
45... b2 {[%clk 0:01:29.9]} 46. Nd2 {[%clk 0:00:02.1]} 46... Qxd2+ {[%clk
0:01:29.1]} 47. Kxd2 {[%clk 0:00:03]} 47... b1=Q {[%clk 0:01:29.3]} 0-1

[Event "Late-Titled-Tuesday-Blitz-February-13-2024"]
[Site "Chess.com"]
[Date "2024.02.13"]
[Round "5"]
[White "rudolfjun2005"]
[Black "MajorCoast"]
[Result "0-1"]
[WhiteElo "2365"]
[BlackElo "2223"]
[TimeControl "180+1"]
[EndTime "14:55:15 PST"]
[Termination "MajorCoast won on time"]

1. e4 {[%clk 0:03:00.9]} 1... c5 {[%clk 0:02:58.6]} 2. Nf3 {[%clk 0:03:00.3]}
2... e6 {[%clk 0:02:58]} 3. c4 {[%clk 0:03:00.1]} 3... Nc6 {[%clk 0:02:57.4]} 4.
Nc3 {[%clk 0:02:59]} 4... Nd4 {[%clk 0:02:58]} 5. d3 {[%clk 0:02:58.1]} 5... Be7
{[%clk 0:02:51.7]} 6. Be2 {[%clk 0:02:58.3]} 6... Nf6 {[%clk 0:02:47]} 7. O-O
{[%clk 0:02:53.9]} 7... d6 {[%clk 0:02:47.3]} 8. Nb5 {[%clk 0:02:50.2]} 8... e5
{[%clk 0:02:40.5]} 9. Nc3 {[%clk 0:02:44.2]} 9... h6 {[%clk 0:02:34.4]} 10. Nxd4
{[%clk 0:02:43.6]} 10... cxd4 {[%clk 0:02:26.8]} 11. Nb5 {[%clk 0:02:32.2]}
11... a6 {[%clk 0:02:20.3]} 12. Na3 {[%clk 0:02:31.8]} 12... O-O {[%clk
0:02:13.7]} 13. f4 {[%clk 0:02:15.5]} 13... b5 {[%clk 0:01:57.1]} 14. cxb5
{[%clk 0:01:50.4]} 14... axb5 {[%clk 0:01:58]} 15. Nxb5 {[%clk 0:01:49.8]} 15...
Qb6 {[%clk 0:01:58.7]} 16. Na3 {[%clk 0:01:36.9]} 16... Nxe4 {[%clk 0:01:56.8]}
17. Nc4 {[%clk 0:01:20.3]} 17... Qa7 {[%clk 0:01:51.7]} 18. dxe4 {[%clk
0:01:16.7]} 18... Ba6 {[%clk 0:01:51.9]} 19. Bd3 {[%clk 0:00:56.8]} 19... Rfc8
{[%clk 0:01:49.6]} 20. b3 {[%clk 0:00:56.7]} 20... Qb7 {[%clk 0:01:25.7]} 21.
fxe5 {[%clk 0:00:53.2]} 21... dxe5 {[%clk 0:01:19.2]} 22. Bd2 {[%clk 0:00:41]}
22... Bxc4 {[%clk 0:01:15.6]} 23. bxc4 {[%clk 0:00:27]} 23... Ra3 {[%clk
0:01:14.4]} 24. Rb1 {[%clk 0:00:16.4]} 24... Qa7 {[%clk 0:01:07.7]} 25. Bb4
{[%clk 0:00:09.2]} 25... Bxb4 {[%clk 0:01:00]} 26. Rxb4 {[%clk 0:00:10.1]} 26...
Rxa2 {[%clk 0:01:00.8]} 27. Qf3 {[%clk 0:00:04.9]} 27... Rc6 {[%clk 0:00:49.4]}
28. Qg4 {[%clk 0:00:02]} 28... Rg6 {[%clk 0:00:44.7]} 29. Qf3 {[%clk 0:00:01.7]}
29... f6 {[%clk 0:00:38.6]} 30. g3 {[%clk 0:00:01.7]} 30... Qa3 {[%clk
0:00:32.9]} 0-1